fUSD/lending_fUSD_20240216
["ID","MTS","AMOUNT","RATE_DAILY","PERIOD"]
[314178812,1708047064481,-500.0,0.00042191,30]
[314178813,1708047064489,-597.55,0.00042191,30]
[314178814,1708047064499,-500.0,0.00042191,30]
[314178815,1708047064509,-1340.23,0.00042191,30]
[314178816,1708047064519,-500.0,0.00042191,30]
[314178817,1708047064528,-529.22,0.00042191,30]
[314178818,1708047064538,-540.72,0.00042191,30]
[314178819,1708047064547,-571.58,0.00042191,30]
[314178820,1708047064557,-500.0,0.00042191,30]
[314178821,1708047064567,-500.0,0.00042191,30]
[314178822,1708047064577,-500.0,0.00042191,30]
[314178823,1708047064586,-721.24,0.00042191,30]
[314178824,1708047064596,-642.45,0.00042191,30]
[314178825,1708047064605,-500.0,0.00042191,30]
[314178826,1708047064615,-500.0,0.00042191,30]
[314178827,1708047064625,-1409.78,0.00042191,30]
[314178828,1708047064635,-574.0,0.00042191,30]
[314178829,1708047064645,-7971.43,0.00042191,30]
[314178830,1708047064654,-1127.98,0.00042191,30]
[314178831,1708047064664,-682.14,0.00042191,30]
[314178832,1708047064673,-5005.254572,0.000422,6]
[314178833,1708047064683,-266.21,0.00042205,2]
[314178834,1708047064692,-500.0,0.00042232,7]
[314178835,1708047064703,-421.14250196,0.0004224,30]
[314178836,1708047064713,-588.0,0.0004224,30]
[314178837,1708047064723,-507.55951068,0.0004224,30]
[314178838,1708047064732,-328.16900781,0.0004224,30]
[314178839,1708047064742,-596.96755918,0.0004224,30]
[314178840,1708047064752,-239.0,0.0004224,7]
[314178841,1708047064761,-307.86547976,0.0004224,30]
[314178842,1708047064771,-256.0,0.0004224,30]
[314178843,1708047064781,-1364.38,0.0004225,7]
[314178844,1708047064790,-1364.38,0.0004225,7]
[314178845,1708047064800,-1364.38,0.0004225,7]
[314178846,1708047064809,-1364.38,0.0004225,7]
[314178847,1708047064819,-200.0,0.000423,16]
[314178848,1708047064828,-500.0,0.00042366,7]
[314178849,1708047064837,-239.0,0.00042377,7]
[314178850,1708047064847,-342.48,0.000424,7]
[314178851,1708047064857,-200.0,0.000424,18]
[314178852,1708047064867,-152.99633916,0.00042415,15]
[314178853,1708047064876,-151.021624,0.00042448,27]
[314178854,1708047064886,-1000.0,0.00042465,3]
[314178855,1708047064895,-600.0,0.00042465,30]
[314178856,1708047064905,-615.18,0.00042465,30]
[314178857,1708047064914,-500.0,0.00042465,30]
[314178858,1708047064924,-344.66595834,0.00042465,30]
[314178859,1708047064933,-500.0,0.00042465,30]
[314178860,1708047064943,-500.0,0.00042465,30]
[314178861,1708047064954,-1799.59,0.00042465,30]
[314178862,1708047064963,-628.97116682,0.00042465,30]
[314178863,1708047064972,-670.83,0.00042465,30]
[314178864,1708047065084,-511.61,0.00042465,30]
[314178865,1708047065095,-508.6898047,0.00042465,30]
[314178866,1708047065106,-597.55,0.00042465,30]
[314178867,1708047065116,-500.0,0.00042465,30]
[314178868,1708047065125,-1340.23,0.00042465,30]
[314178869,1708047065135,-382.25632468,0.00042465,30]
[314178870,1708047065145,-529.22,0.00042465,30]
[314178871,1708047065154,-540.72,0.00042465,30]
[314178872,1708047065165,-571.58,0.00042465,30]
[314178873,1708047065175,-500.0,0.00042465,30]
[314178874,1708047065185,-500.0,0.00042465,30]
[314178875,1708047065195,-500.0,0.00042465,30]
[314178876,1708047065206,-721.24,0.00042465,30]
[314178877,1708047065217,-642.45,0.00042465,30]
[314178878,1708047065227,-500.0,0.00042465,30]
[314178879,1708047065236,-500.0,0.00042465,30]
[314178880,1708047065246,-1409.78,0.00042465,30]
[314178881,1708047065255,-574.0,0.00042465,30]
[314178882,1708047065265,-7971.43,0.00042465,30]
[314178883,1708047065276,-1127.98,0.00042465,30]
[314178884,1708047065286,-682.14,0.00042465,30]
[314178885,1708047065295,-364.0,0.00042468,2]
[314178886,1708047065307,-500.0,0.00042499,7]
[314178887,1708047065326,-234.0,0.000425,7]
[314178888,1708047065338,-1606.98060744,0.000425,60]
[314178889,1708047065347,-6589.0,0.000425,21]
[314178890,1708047065356,-1032.0,0.000425,14]
[314178891,1708047065366,-62599.12383053,0.000425,4]
[314178892,1708047065375,-22249.61,0.000425,7]
[314178893,1708047065385,-239.0,0.00042514,7]
[314178894,1708047065395,-1364.38,0.00042523,7]
[314178895,1708047065404,-1364.38,0.00042523,7]
[314178896,1708047065414,-152.0,0.00042558,5]
[314178897,1708047065423,-161.32139665,0.00042582,30]
[314178898,1708047065432,-173.59709461,0.0004259,17]
[314178899,1708047065442,-173.7833846,0.0004259,7]
[314178900,1708047065452,-173.7833846,0.0004259,7]
[314178901,1708047065461,-173.7833846,0.0004259,7]
[314178902,1708047065470,-173.7833846,0.0004259,7]
[314178903,1708047065480,-173.7833846,0.0004259,7]
[314178904,1708047065490,-173.7833846,0.0004259,7]
[314178905,1708047065500,-173.7833846,0.0004259,7]
[314178906,1708047065509,-173.7833846,0.0004259,7]
[314178907,1708047065519,-173.7833846,0.0004259,7]
[314178908,1708047065528,-173.7833846,0.0004259,7]
[314178909,1708047065538,-173.7833846,0.0004259,7]
[314178910,1708047065547,-173.7833846,0.0004259,7]
[314178911,1708047065557,-173.7833846,0.0004259,7]
[314178912,1708047065567,-173.7833846,0.0004259,7]
[314178913,1708047065577,-173.7833846,0.0004259,7]
[314178914,1708047065587,-173.7833846,0.0004259,7]
[314178915,1708047065596,-173.7833846,0.0004259,7]
[314178916,1708047065606,-173.7833846,0.0004259,7]
[314178917,1708047065616,-173.7833846,0.0004259,7]
[314178918,1708047065625,-173.78,0.0004259,7]
[314178919,1708047065635,-157.6139416,0.0004259,7]
[314178920,1708047065645,-157.6139416,0.0004259,7]
[314178921,1708047065655,-157.6139416,0.0004259,7]
[314178922,1708047065664,-157.6139416,0.0004259,7]
[314178923,1708047065674,-157.6139416,0.0004259,7]
[314178924,1708047065684,-157.6139416,0.0004259,7]
[314178925,1708047065693,-157.6139416,0.0004259,7]
[314178926,1708047065702,-157.6139416,0.0004259,7]
[314178927,1708047065712,-157.61,0.0004259,7]
[314178928,1708047065721,-160.05649095,0.0004259,7]
[314178929,1708047065730,-160.05649095,0.0004259,7]
[314178930,1708047065740,-160.05649095,0.0004259,7]
[314178931,1708047065749,-160.05649095,0.0004259,7]
[314178932,1708047065759,-160.05649095,0.0004259,7]
[314178933,1708047065768,-160.05649095,0.0004259,7]
[314178934,1708047065778,-160.05649095,0.0004259,7]
[314178935,1708047065787,-160.05649095,0.0004259,7]
[314178936,1708047065797,-160.05649095,0.0004259,7]
[314178937,1708047065806,-160.05649095,0.0004259,7]
[314178938,1708047065816,-160.05649095,0.0004259,7]
[314178939,1708047065825,-160.05649095,0.0004259,7]
[314178940,1708047065834,-160.05649095,0.0004259,7]
[314178942,1708047065844,-160.05,0.0004259,7]
[314178943,1708047065853,-152.21804763,0.0004259,7]
[314178944,1708047065862,-152.21804763,0.0004259,7]
[314178945,1708047065871,-152.21804763,0.0004259,7]
[314178946,1708047065881,-152.21804763,0.0004259,7]
[314178947,1708047065890,-152.21804763,0.0004259,7]
[314178948,1708047065899,-152.21804763,0.0004259,7]
[314178949,1708047065908,-152.21804763,0.0004259,7]
[314178950,1708047065917,-152.21804763,0.0004259,7]
[314178951,1708047065926,-152.21804763,0.0004259,7]
[314178952,1708047065935,-152.21804763,0.0004259,7]
[314178953,1708047065944,-152.21804763,0.0004259,7]
[314178954,1708047065953,-152.21804763,0.0004259,7]
[314178955,1708047065963,-152.21804763,0.0004259,7]
[314178956,1708047065972,-152.21804763,0.0004259,7]
[314178957,1708047065981,-152.21804763,0.0004259,7]
[314178958,1708047065990,-152.21804763,0.0004259,7]
[314178959,1708047066000,-152.21,0.0004259,7]
[314178960,1708047066009,-158.29947506,0.0004259,7]
[314178961,1708047066018,-158.29947506,0.0004259,7]
[314178962,1708047066028,-158.29947506,0.0004259,7]
[314178963,1708047066037,-158.29947506,0.0004259,7]
[314178964,1708047066046,-158.29947506,0.0004259,7]
[314178965,1708047066056,-158.29947506,0.0004259,7]
[314178966,1708047066065,-158.29947506,0.0004259,7]
[314178967,1708047066074,-158.29947506,0.0004259,7]
[314178968,1708047066083,-158.29947506,0.0004259,7]
[314178969,1708047066092,-158.29947506,0.0004259,7]
[314178970,1708047066101,-158.29947506,0.0004259,7]
[314178971,1708047066110,-158.29947506,0.0004259,7]
[314178972,1708047066118,-158.29947506,0.0004259,7]
[314178973,1708047066127,-158.29947506,0.0004259,7]
[314178974,1708047066137,-158.29947506,0.0004259,7]
[314178975,1708047066145,-158.29,0.0004259,7]
[314178976,1708047066155,-2856.92,0.000426,7]
[314178977,1708047066164,-3743.05915225,0.000426,10]
[314178978,1708047066174,-1965.47458791,0.000426,2]
[314178979,1708047066183,-2746.19619291,0.000426,2]
[314178980,1708047066193,-15025.37135576,0.00042617,2]
[314178981,1708047066203,-205.0,0.00042625,19]
[314178982,1708047066212,-500.0,0.00042633,7]
[314178983,1708047066222,-395.68959334,0.00042639,2]
[314178984,1708047066231,-239.0,0.00042651,7]
[314178985,1708047066241,-12494.6415434,0.00042661,2]
[314178986,1708047066250,-7018.415345,0.00042661,2]
[314178987,1708047066259,-3311.1133172,0.00042661,2]
[314178988,1708047066269,-197.054328,0.00042661,2]
[314178989,1708047066278,-1113.825942,0.00042661,2]
[314178990,1708047066288,-588.0,0.00042662,30]
[314178991,1708047066297,-256.0,0.00042662,30]
[314178992,1708047066307,-1075.48122115,0.00042687,2]
[314178993,1708047066318,-2900.991,0.0004269,4]
[314178994,1708047066328,-2900.992,0.0004269,4]
[314178995,1708047066337,-2900.991,0.0004269,4]
[314178996,1708047066346,-2900.992,0.0004269,4]
[314178997,1708047066356,-2900.991,0.0004269,4]
[314178998,1708047066365,-771057.97153527,0.0004269,30]
[314178999,1708047066531,-74162.63662782,0.0004269,30]
[314179000,1708047066544,-195762.29624589,0.0004269,30]
[314179001,1708047066556,-3083.93062824,0.0004269,30]
[314179002,1708047066571,-342.35004013,0.0004269,30]
[314179003,1708047066797,-443.65432404,0.00038356,7]
[314179004,1708047066806,-500.0,0.00038356,7]
[314179005,1708047066817,-151.60136235,0.0003863,7]
[314179006,1708047066826,-686.29212461,0.00038867,2]
[314179007,1708047066862,-3406.7164623,0.00036998,2]
[314179008,1708047066878,-151.37,0.0003584,2]
[314179009,1708047066887,-417.57,0.00036998,2]
[314179010,1708047066899,-657.02183902,0.00036998,2]
[314179011,1708047066961,-2512.81682625,0.00036998,2]
[314179012,1708047066973,-848.89,0.00036998,2]
[314179013,1708047066984,-1190.88001,0.00036998,2]
[314179014,1708047067000,-255.93035,0.00036998,2]
[314179015,1708047067113,-88.43526993,0.00036998,2]
[314179016,1708047067123,-151.37,0.0003761,2]
[314179017,1708047067132,-670.70422515,0.00038354,2]
[314179018,1708047067144,-1020.5000005,0.00038354,2]
[314179019,1708047067161,-282.09222093,0.00038354,2]
[314179020,1708047067219,-6863.35192175,0.00038354,2]
[314179021,1708047067231,-835.04991627,0.00038354,2]
[314179022,1708047067243,-651.06340159,0.00038354,2]
[314179023,1708047067255,-553.29494778,0.00038354,2]
[314179024,1708047067271,-376.78730813,0.00038354,2]
[314179025,1708047067288,-491.51801916,0.00038354,2]
[314179026,1708047067376,-360.44830347,0.0003483,2]
[314179027,1708047067387,-360.44830344,0.00035573,2]
[314179028,1708047067397,-169.86627404,0.00036427,10]
[314179029,1708047067407,-3942.22172484,0.00038354,2]
[314179030,1708047067418,-482.08728435,0.00038354,4]
[314179031,1708047067428,-150.01,0.00038355,2]
[314179032,1708047067438,-3316.80182207,0.00038355,2]
[314179033,1708047067447,-583.91535249,0.00038356,7]
[314179034,1708047067458,-1088.85640166,0.00038752,2]
[314179035,1708047067468,-1058.9873615,0.00038867,2]
[314179036,1708047067480,-119.72051389,0.00038867,2]
[314179037,1708047067490,-151.37,0.0003938,2]
[314179038,1708047067500,-434.61200066,0.00039849,2]
[314179039,1708047067510,-12085.6421,0.00040972,2]
[314179040,1708047067521,-289.63799347,0.00040972,2]
[314179041,1708047067533,-5483.94189323,0.00040972,2]
[314179042,1708047067543,-151.37,0.0004115,2]
[314179043,1708047067552,-842.0,0.00041867,2]
[314179044,1708047067562,-418.02352376,0.00041867,2]
[314179045,1708047067574,-495.22347624,0.00041867,2]
[314179046,1708047067583,-42.21160036,0.0004199,61]
[314179047,1708047067595,-154.03839964,0.0004199,61]
[314179048,1708047067605,-170.89,0.0004199,61]
[314179049,1708047067614,-1078.60385041,0.000426,2]
[314179050,1708047067624,-2431.70480648,0.00042661,2]
[314179051,1708047067636,-507.30573655,0.00042661,2]
[314179052,1708047067649,-2595.05,0.00042661,2]
[314179053,1708047067660,-14497.79974417,0.00042661,2]
[314179054,1708047067670,-33518.15650326,0.0004269,30]
[314179055,1708047067682,-18252.97645321,0.0004269,30]
[314179056,1708047067694,-3193.20702111,0.0004269,30]
[314179057,1708047067706,-366.49928082,0.0004269,30]
[314179058,1708047067718,-285.11985045,0.0004269,30]
[314179059,1708047067729,-339.470513,0.0004269,30]
[314179060,1708047067741,-280.27417697,0.0004269,30]
[314179061,1708047067753,-379.24221432,0.0004269,30]
[314179062,1708047067765,-2250.66763034,0.0004269,30]
[314179063,1708047067778,-1630.30079944,0.0004269,30]
[314179064,1708047067789,-711.79079189,0.0004269,30]
[314179065,1708047067800,-262.55771533,0.0004269,30]
[314179066,1708047067811,-2067.30774244,0.0004269,30]
[314179067,1708047067823,-495.71718931,0.0004269,30]
[314179068,1708047067836,-7565.11126142,0.0004269,30]
[314179069,1708047067847,-35847.7710988,0.0004269,30]
[314179070,1708047067859,-910.07126,0.0004269,30]
[314179071,1708047067879,-1957.4359972,0.0004269,30]
[314179072,1708047067890,-2248.46080941,0.0004269,30]
[314179073,1708047067903,-3153.81405,0.0004269,30]
[314179074,1708047067915,-866.00069912,0.0004269,30]
[314179075,1708047067927,-6690.07556095,0.0004269,30]
[314179076,1708047067939,-2021.23707914,0.0004269,30]
[314179077,1708047067954,-40580.47751249,0.0004269,30]
[314179078,1708047067966,-2903.85647648,0.0004269,30]
[314179079,1708047067977,-2449.91985767,0.0004269,30]
[314179080,1708047067989,-643.97892178,0.0004269,30]
[314179083,1708047225136,1250.0,0.00025,3]
[314179084,1708047226198,1300.0,0.00027,3]
[314179085,1708047227273,1350.0,0.00029,3]
[314179092,1708048232171,-842.15227683,0.00030878,4]
[314179093,1708048232181,-190.77375297,0.00030878,4]
[314179094,1708048232237,-501.14049853,0.00030878,4]
[314179095,1708048232246,-482.08728435,0.00030879,4]
[314179096,1708048232255,-230.90586887,0.00030887,2]
[314179097,1708048232265,-172.42045212,0.00030899,2]
[314179098,1708048232274,-972.87253441,0.00030998,2]
[314179099,1708048232283,-150.0,0.00030999,2]
[314179100,1708048232292,-400.0,0.00030999,2]
[314179101,1708048232302,-1400.0,0.00031,3]
[314179102,1708048232311,-20000.0,0.00031,2]
[314179103,1708048232321,-20000.0,0.00031,2]
[314179104,1708048232330,-486.35875395,0.00032296,2]
[314179105,1708048232351,-208.20124605,0.00032296,2]
[314179106,1708048232362,-150.99,0.00032385,2]
[314179107,1708048232371,-94.39779014,0.00032385,2]
[314179108,1708048232383,-112.60220986,0.00032385,2]
[314179109,1708048232393,-671.64271018,0.00033,3]
[314179110,1708048232404,-723.29357829,0.00033,3]
[314179111,1708048232420,-55.06371153,0.00033,3]
[314179112,1708048232430,-150.0,0.00033124,2]
[314179113,1708048232440,-2000.0,0.00033166,2]
[314179114,1708048232449,-250.0,0.00033243,2]
[314179115,1708048232459,-500.0,0.00033293,2]
[314179116,1708048232470,-100.46703822,0.00033298,2]
[314179117,1708048232482,-99.53296178,0.00033298,2]
[314179118,1708048232491,-308.0,0.00033376,3]
[314179119,1708048232501,-151.08703822,0.00033376,2]
[314179120,1708048232512,-374.34296178,0.00033376,2]
[314179121,1708048232522,-499.99,0.00033385,2]
[314179122,1708048232531,-514.14,0.00033385,2]
[314179123,1708048232540,-5667.04,0.00033385,2]
[314179124,1708048232550,-172.42045212,0.00033757,2]
[314179125,1708048232559,-9999.99,0.00034099,2]
[314179127,1708048232568,-183.0,0.00034099,2]
[314179129,1708048232577,-816.89,0.00034113,2]
[314179131,1708048232586,-605.54081394,0.00034136,4]
[314179133,1708048232595,-2082.6,0.00034245,2]
[314179135,1708048232604,-250.0,0.00034245,111]
[314179137,1708048232613,-500.0,0.00034245,2]
[314179139,1708048232623,-166.22,0.00034245,2]
[314179141,1708048232632,-23900.0,0.00034245,2]
[314179143,1708048232641,-200.0,0.00034326,2]
[314179145,1708048232653,-150.0,0.0003438,2]
[314179146,1708048232663,-250.0,0.00034385,2]
[314179147,1708048232673,-194.3,0.00034388,2]
[314179148,1708048232681,-200.0,0.00034445,2]
[314179149,1708048232691,-207.0,0.00034509,6]
[314179150,1708048232700,-600.0,0.0003452,2]
[314179151,1708048232709,-559.73,0.00034521,2]
[314179152,1708048232722,-694.56,0.0003456,2]
[314179153,1708048232732,-4223.8627,0.00034969,2]
[314179154,1708048232743,-2450.9803,0.00034969,2]
[314179155,1708048232752,-1500.0,0.00035,3]
[314179156,1708048232762,-1000.0,0.00035026,2]
[314179157,1708048232772,-2500.0,0.00035026,2]
[314179158,1708048232781,-876.9677,0.00035069,2]
[314179159,1708048232790,-81340.15611347,0.00035126,2]
[314179160,1708048232800,-477.23902962,0.00035131,7]
[314179161,1708048232809,-5005.4577556,0.00035142,10]
[314179162,1708048232818,-1385.3946589,0.00035142,10]
[314179163,1708048232828,-1231.16564306,0.00035142,10]
[314179164,1708048232838,-32122.39391596,0.00035169,10]
[314179165,1708048232850,-1008.9263289,0.00035169,10]
[314179166,1708048232861,-24223.57417675,0.00035169,10]
[314179167,1708048232871,-4418.66,0.00035326,2]
[314179168,1708048232880,-200.0,0.00035559,2]
[314179169,1708048232889,-175.39,0.00035615,2]
[314179170,1708048232899,-559.73,0.00035798,2]
[314179171,1708048232908,-151.021624,0.00036198,17]
[314179172,1708048232917,-150.0,0.0003623,2]
[314179173,1708048232927,-151.021624,0.00036498,18]
[314179174,1708048232936,-172.42045212,0.00036616,2]
[314179175,1708048232946,-466.0,0.00036626,2]
[314179176,1708048232955,-207.0,0.00036633,10]
[314179177,1708048232965,-13868.7110613,0.00036646,9]
[314179178,1708048232975,-81340.15611342,0.00036656,2]
[314179179,1708048232984,-477.23902958,0.00036668,8]
[314179180,1708048232993,-1386.87110613,0.00036686,9]
[314179181,1708048233003,-4234.7944,0.00036696,2]
[314179182,1708048233012,-1386.87110613,0.00036786,9]
[314179183,1708048233022,-360.8363,0.00036796,2]
[314179184,1708048233031,-330.18461173,0.00036796,2]
[314179185,1708048233040,-2608.06864703,0.00036796,2]
[314179186,1708048233050,-151.021624,0.00036798,19]
[314179187,1708048233059,-694.56,0.00036824,2]
[314179188,1708048233068,-151.37,0.00036857,2]
[314179189,1708048233077,-19416.1954858,0.00036886,10]
[314179190,1708048233086,-3402.81857368,0.00036895,2]
[314179191,1708048233095,-39488.7513,0.00036896,2]
[314179192,1708048233104,-100000.0,0.00036896,2]
[314179193,1708048233113,-500.0,0.00036896,2]
[314179194,1708048233122,-500.0,0.00036896,2]
[314179195,1708048233131,-1000.0,0.00036896,2]
[314179196,1708048233141,-156.10125771,0.00036897,2]
[314179197,1708048233150,-541.05,0.00036986,2]
[314179198,1708048233159,-238.99582692,0.00036993,2]
[314179199,1708048233168,-256202.96846088,0.00036996,2]
[314179200,1708048233185,-1075.49275789,0.00036996,2]
[314179203,1708048238258,-133186.12505542,0.00036996,2]
[314179204,1708048238268,-204.08392595,0.00036997,4]
[314179205,1708048238277,-1550.0,0.00037,3]
[314179206,1708048238286,-286.87880495,0.00037,2]
[314179207,1708048238295,-559.73,0.00037075,2]
[314179208,1708048238305,-177.71116495,0.00037535,10]
[314179209,1708048238314,-3949.08911471,0.00037535,10]
[314179210,1708048238324,-18831.0,0.000376,3]
[314179211,1708048238333,-269046.50949298,0.000378,3]
[314179212,1708048238342,-3650.09,0.000378,5]
[314179213,1708048238351,-3572.99,0.000378,5]
[314179214,1708048238360,-3640.28,0.000378,5]
[314179215,1708048238369,-3581.95,0.000378,5]
[314179216,1708048238379,-3629.41,0.000378,5]
[314179217,1708048238388,-3612.65,0.000378,5]
[314179218,1708048238397,-3587.77,0.000378,5]
[314179219,1708048238407,-3607.92,0.000378,5]
[314179220,1708048238416,-3568.92,0.000378,5]
[314179221,1708048238425,-3625.39,0.000378,5]
[314179222,1708048238435,-3642.58,0.000378,5]
[314179223,1708048238444,-3647.05,0.000378,5]
[314179224,1708048238453,-3588.26,0.000378,5]
[314179225,1708048238462,-194.3,0.00037826,2]
[314179226,1708048238472,-365788.168325,0.000379,2]
[314179227,1708048238481,-295.91291663,0.00037973,2]
[314179228,1708048238490,-602.94265673,0.00037973,2]
[314179229,1708048238499,-10000.0,0.00038,5]
[314179230,1708048238509,-266.04051983,0.00038016,3]
[314179231,1708048238518,-330.18461172,0.00038116,2]
[314179232,1708048238527,-238.99582692,0.00038174,2]
[314179233,1708048238537,-91447.0420813,0.00038177,2]
[314179234,1708048238547,-81340.15611342,0.00038187,2]
[314179235,1708048238556,-477.23902958,0.00038204,8]
[314179236,1708048238565,-3949.08911465,0.00038205,11]
[314179237,1708048238575,-559.73,0.00038352,2]
[314179238,1708048238584,-566.87179158,0.00038353,4]
[314179239,1708048238593,-3572.77,0.00038356,5]
[314179240,1708048238602,-503.05844551,0.00038356,7]
[314179241,1708048238611,-239.70892614,0.00038356,7]
[314179242,1708048238621,-506.95688496,0.00038356,7]
[314179244,1708048238632,-531.40835124,0.00038356,7]
[314179246,1708048238642,-535.42697154,0.00038356,7]
[314179247,1708048238651,-500.45254752,0.00038356,7]
[314179248,1708048238660,-519.19866568,0.00038356,7]
[314179249,1708048238670,-605.6995414,0.00038356,7]
[314179250,1708048238679,-515.8690404,0.00038356,7]
[314179251,1708048238688,-501.10318661,0.00038356,7]
[314179252,1708048238697,-505.79144142,0.00038356,7]
[314179253,1708048238706,-506.92264094,0.00038356,7]
[314179254,1708048238715,-516.46068401,0.00038356,7]
[314179255,1708048238725,-502.20995044,0.00038356,7]
[314179256,1708048238734,-518.37438179,0.00038356,7]
[314179257,1708048238743,-538.9676061,0.00038356,7]
[314179258,1708048238752,-536.25242638,0.00038356,7]
[314179259,1708048238761,-521.8278041,0.00038356,7]
[314179260,1708048238770,-506.04481929,0.00038356,7]
[314179261,1708048238780,-529.89677726,0.00038356,7]
[314179262,1708048238789,-503.94935546,0.00038356,7]
[314179263,1708048238799,-500.0,0.00038356,7]
[314179264,1708048238808,-541.49479608,0.00038356,7]
[314179265,1708048238817,-536.59785184,0.00038356,7]
[314179266,1708048238827,-502.99679477,0.00038356,7]
[314179267,1708048238836,-527.06553297,0.00038356,7]
[314179268,1708048238846,-503.07727008,0.00038356,7]
[314179269,1708048238855,-483.78958449,0.00038356,7]
[314179270,1708048238865,-263.01201215,0.00038356,7]
[314179271,1708048238874,-568.96588293,0.00038356,7]
[314179272,1708048238884,-509.72942185,0.00038356,7]
[314179273,1708048238894,-558.64673066,0.00038356,7]
[314179274,1708048238903,-503.62454535,0.00038356,7]
[314179275,1708048238913,-530.6533288,0.00038356,7]
[314179276,1708048238923,-503.55455488,0.00038356,7]
[314179277,1708048238932,-570.56386932,0.00038356,7]
[314179278,1708048238942,-501.68696234,0.00038356,7]
[314179279,1708048238951,-502.9904644,0.00038356,7]
[314179280,1708048238961,-519.08284938,0.00038356,7]
[314179281,1708048238971,-414.63228302,0.00038356,7]
[314179282,1708048238980,-509.37670306,0.00038356,7]
[314179283,1708048238989,-500.37147172,0.00038356,7]
[314179284,1708048238998,-631.40298891,0.00038356,7]
[314179285,1708048239007,-535.64257057,0.00038356,7]
[314179286,1708048239016,-530.61682229,0.00038356,7]
[314179287,1708048239025,-534.6906646,0.00038356,7]
[314179288,1708048239035,-506.930281,0.00038356,7]
[314179289,1708048239044,-557.45835417,0.00038356,7]
[314179290,1708048239054,-261.40330935,0.00038356,7]
[314179291,1708048239063,-555.55942788,0.00038356,7]
[314179292,1708048239073,-521.40355491,0.00038356,7]
[314179293,1708048239082,-537.91371264,0.00038356,7]
[314179294,1708048239091,-553.79799909,0.00038356,7]
[314179295,1708048239101,-512.2829418,0.00038356,7]
[314179296,1708048239110,-549.97270574,0.00038356,7]
[314179297,1708048239119,-511.73117267,0.00038356,7]
[314179298,1708048239128,-538.84342157,0.00038356,7]
[314179299,1708048239137,-524.93268645,0.00038356,7]
[314179300,1708048239147,-566.75041181,0.00038356,7]
[314179301,1708048239155,-546.32924457,0.00038356,7]
[314179302,1708048239164,-549.65716783,0.00038356,7]
[314179303,1708048239174,-520.27148613,0.00038356,7]
[314179304,1708048239183,-532.54297278,0.00038356,7]
[314179305,1708048239192,-470.69370078,0.00038356,7]
[314179306,1708048239202,-517.04943863,0.00038356,7]
[314179307,1708048239211,-500.0,0.00038356,7]
[314179308,1708048239220,-538.87889591,0.00038356,7]
[314179309,1708048239230,-528.26533016,0.00038356,7]
[314179310,1708048239239,-556.93725848,0.00038356,7]
[314179311,1708048239248,-566.88789384,0.00038356,7]
[314179312,1708048239258,-526.30761404,0.00038356,7]
[314179313,1708048239267,-519.20177636,0.00038356,7]
[314179314,1708048239275,-535.7701263,0.00038356,7]
[314179315,1708048239284,-533.4493114,0.00038356,7]
[314179316,1708048239294,-509.05014884,0.00038356,7]
[314179317,1708048239303,-507.98950162,0.00038356,7]
[314179318,1708048239312,-554.82404435,0.00038356,7]
[314179319,1708048239321,-515.701903,0.00038356,7]
[314179320,1708048239484,-534.27672967,0.00038356,7]
[314179321,1708048239494,-519.65590699,0.00038356,7]
[314179322,1708048239503,-517.67316609,0.00038356,7]
[314179323,1708048239512,-546.29529059,0.00038356,7]
[314179324,1708048239521,-545.5262098,0.00038356,7]
[314179325,1708048239531,-519.43350988,0.00038356,7]
[314179326,1708048239540,-512.15991006,0.00038356,7]
[314179327,1708048239552,-522.38192115,0.00038356,7]
[314179328,1708048239561,-526.43208249,0.00038356,7]
[314179329,1708048239570,-550.61952341,0.00038356,7]
[314179330,1708048239579,-517.31953854,0.00038356,7]
[314179331,1708048239588,-515.58707261,0.00038356,7]
[314179332,1708048239600,-505.20472239,0.00038356,7]
[314179333,1708048239609,-521.74377292,0.00038356,7]
[314179334,1708048239619,-263.39992226,0.00038356,7]